{"text_format":"2","workbook":"xlsx","n_sheets":16,"sheets":["RESUMO","Propriá","Cotinguiba_Pindoba","Betume EB2 e EB3","Betume EB2 e EB3 - interligação","Betume EB5","Betume EB7","Betume EB8","CPU","BDI_Serviços","Forn Propriá","Forn Cotinguiba","Forn Betume EB2 e EB3","Forn Betume EB5","Forn Betume EB7","Forn Betume EB8"],"not_rendered":{"charts":0,"images":2,"macros":0,"external_links":9,"defined_names":3542,"comments":0,"pivot_tables":0},"unopened":[],"bounds":{"document_bytes":16777216,"sheet_cells":100000,"run_cost":"one","rows_first":2000,"rows_last":500,"rows_between":2000,"halvings":0,"cell_chars":16384,"cell_head_chars":4096},"cells_cut":0,"cells_raw":0,"read":"whole","date_system":"1900"}

{"sheet":"RESUMO","index":0,"n_rows":34,"n_cols":9,"rows_kept":34,"cut":false,"hidden":false,"merged":[[32,0,32,7],[33,0,33,7],[0,3,0,8],[4,5,5,5],[4,6,4,7],[4,8,5,8],[6,0,6,8],[15,0,15,8],[24,0,24,8],[14,0,14,7],[23,0,23,7],[1,0,2,5],[1,6,2,6],[1,7,2,7],[1,8,2,8],[3,0,3,8],[4,0,5,0],[4,1,5,1],[4,2,5,2],[4,3,5,3],[4,4,5,4]]}
[null,null,null,"Ministério da Integração Nacional - MI                                                                                                                                                                                                                        Companhia de Desenvolvimento do Vale do São Francisco e do Parnaíba - Codevasf                                                                                                                                              Gerência de Gestão dos Empreendimentos de Irrigação - AI/GEI"]
["READEQUAÇÃO DOS PERÍMETROS IRRIGADOS DA CODEVASF/4ªSR PARA ADAPTAR OS SISTEMAS DE BOMBEAMENTO COM A REDUÇÃO DE VAZÃO DO RIO SÃO FRANCISCO",{"$nulls":5},"Data Base: JULHO/2015","BDI (Serviço)",{"$f":"BDI_Serviços!E24","v":0}]
[]
["PLANILHA ORÇAMENTÁRIA"]
["ITEM","CÓDIGO","FONTE","DESCRIÇÃO","UN.","QUANT.","Preço Unitário (R$)",null,"Preço Total (R$)"]
[{"$nulls":6},"Sem BDI","Com BDI"]
["Grupo 01 - Propriá"]
["1.1","73822/002","Sinapi","Limpeza do Terremo - Raspagem e limpeza mecanizada de camada vegetal.","m²",25,null,{"$f":"ROUND(G8*(1+$I$2),2)","v":0},{"$f":"ROUND(F8*H8,2)","v":0}]
["1.2","74209/001","Sinapi","Placa de identificação de obra em chapa de aço galvanizado (4m x 3m) - incluindo fornecimento e instalação.","m²",12,null,{"$f":"ROUND(G9*(1+$I$2),2)","v":0},{"$f":"ROUND(F9*H9,2)","v":0}]
["1.3","-","CPU","Administração local.","mês",2,{"$f":"CPU!G54","v":0},{"$f":"ROUND(G10*(1+$I$2),2)","v":0},{"$f":"ROUND(F10*H10,2)","v":0}]
["1.4","-","CPU","Mobilização","und",1,{"$f":"CPU!G14","v":0},{"$f":"ROUND(G11*(1+$I$2),2)","v":0},{"$f":"ROUND(F11*H11,2)","v":0}]
["1.5","-","CPU","Desmobilização","und",1,{"$f":"CPU!G30","v":0},{"$f":"ROUND(G12*(1+$I$2),2)","v":0},{"$f":"ROUND(F12*H12,2)","v":0}]
["2.1","-","-","Serviços na Estação de Bombeamento EB1","und",1,null,{"$f":"Propriá!I23","v":0},{"$f":"F13*H13","v":0}]
["3.1","-","-","Fornecimentos na Estação de Bombeamento EB1","und",1,"-",{"$f":"'Forn Propriá'!G20","v":0},{"$f":"F14*H14","v":0}]
["TOTAL    ",{"$nulls":7},{"$f":"SUM(I8:I14)","v":0}]
["Grupo 02 - Cotinguiba-Pindoba "]
["1.1","73822/002","Sinapi","Limpeza do Terremo - Raspagem e limpeza mecanizada de camada vegetal.","m²",25,null,{"$f":"ROUND(G17*(1+$I$2),2)","v":0},{"$f":"ROUND(F17*H17,2)","v":0}]
["1.2","74209/001","Sinapi","Placa de identificação de obra em chapa de aço galvanizado (4m x 3m) - incluindo fornecimento e instalação.","m²",12,null,{"$f":"ROUND(G18*(1+$I$2),2)","v":0},{"$f":"ROUND(F18*H18,2)","v":0}]
["1.3","-","CPU","Administração local.","mês",2,{"$f":"CPU!G54","v":0},{"$f":"ROUND(G19*(1+$I$2),2)","v":0},{"$f":"ROUND(F19*H19,2)","v":0}]
["1.4","-","CPU","Mobilização","und",1,{"$f":"CPU!G14","v":0},{"$f":"ROUND(G20*(1+$I$2),2)","v":0},{"$f":"ROUND(F20*H20,2)","v":0}]
["1.5","-","CPU","Desmobilização","und",1,{"$f":"CPU!G30","v":0},{"$f":"ROUND(G21*(1+$I$2),2)","v":0},{"$f":"ROUND(F21*H21,2)","v":0}]
["2.1","-","-","Serviços na Estação de Bombeamento EB2","und",1,"-",{"$f":"Cotinguiba_Pindoba!I23","v":0},{"$f":"F22*H22","v":0}]
["3.1","-","-","Fornecimentos na Estação de Bombeamento EB2","und",1,"-",{"$f":"'Forn Cotinguiba'!G22","v":0},{"$f":"F23*H23","v":0}]
["TOTAL    ",{"$nulls":7},{"$f":"SUM(I17:I23)","v":0}]
["Grupo 03 - Betume"]
["1.1","73822/002","Sinapi","Limpeza do Terremo - Raspagem e limpeza mecanizada de camada vegetal.","m²",30,null,{"$f":"ROUND(G26*(1+$I$2),2)","v":0},{"$f":"ROUND(F26*H26,2)","v":0}]
["1.2","74209/001","Sinapi","Placa de identificação de obra em chapa de aço galvanizado (4m x 3m) - incluindo fornecimento e instalação.","m²",12,null,{"$f":"ROUND(G27*(1+$I$2),2)","v":0},{"$f":"ROUND(F27*H27,2)","v":0}]
["1.3","-","CPU","Administração local.","mês",3,{"$f":"CPU!G54","v":0},{"$f":"ROUND(G28*(1+$I$2),2)","v":0},{"$f":"ROUND(F28*H28,2)","v":0}]
["1.4","-","CPU","Mobilização","und",1,{"$f":"CPU!G14","v":0},{"$f":"ROUND(G29*(1+$I$2),2)","v":0},{"$f":"ROUND(F29*H29,2)","v":0}]
["1.5","-","CPU","Desmobilização","und",1,{"$f":"CPU!G30","v":0},{"$f":"ROUND(G30*(1+$I$2),2)","v":0},{"$f":"ROUND(F30*H30,2)","v":0}]
["2.1","-","-","Serviços na Estação de Bombeamento EB2, EB3, EB5, EB7 e EB8","und",1,"-",{"$f":"'Betume EB2 e EB3'!I23+'Betume EB2 e EB3 - interligação'!I20+'Betume EB5'!I23+'Betume EB7'!I23+'Betume EB8'!I23","v":0},{"$f":"F31*H31","v":0}]
["3.1","-","-","Fornecimentos na Estação de Bombeamento EB2, EB3, EB5, EB7 e EB8","und",1,"-",{"$f":"'Forn Betume EB2 e EB3'!G21+'Forn Betume EB5'!G22+'Forn Betume EB7'!G19+'Forn Betume EB8'!G19","v":0},{"$f":"F32*H32","v":0}]
["TOTAL    ",{"$nulls":7},{"$f":"SUM(I26:I32)","v":0}]
["TOTAL GERAL    ",{"$nulls":7},{"$f":"I15+I24+I33","v":0}]

{"sheet":"Propriá","index":1,"n_rows":23,"n_cols":9,"rows_kept":23,"cut":false,"hidden":false,"merged":[[0,0,1,5],[1,6,1,7],[2,0,2,5],[2,6,2,7],[3,0,4,0],[3,1,4,1],[3,2,4,2],[3,3,4,3],[3,4,4,4],[3,5,4,5],[14,1,14,7],[17,1,17,7],[22,0,22,7],[3,6,3,7],[3,8,4,8],[5,1,5,7],[6,1,6,7],[10,1,10,7],[11,1,11,7]]}
[{"$f":"[4]RESUMO!$A$6","v":"READEQUAÇÃO DOS PERÍMETROS IRRIGADOS DA CODEVASF/4ªSR PARA ADAPTAR OS SISTEMAS DE BOMBEAMENTO COM A REDUÇÃO DE VAZÃO DO RIO SÃO FRANCISCO -(Estações de Bombeamento EB1 - Propria.) "},{"$nulls":5},{"$f":"[4]RESUMO!$G$6","v":"Data Base: JULHO/2015"},"Prazo da Obra:"]
[]
["PLANILHA ORÇAMENTÁRIA DE SERVIÇOS",{"$nulls":5},"BDI (Serviços):",null,{"$f":"BDI_Serviços!E24","v":0}]
["ITEM","CÓDIGO","FONTE","DESCRIÇÃO","UN.","QUANT.","Preço Unitário (R$)",null,"Preço Total (R$)"]
[{"$nulls":6},"Sem BDI","Com BDI"]
["1","CAPTAÇÃO",{"$nulls":6},{"$f":"I7","v":0}]
["1.1","CAPTAÇÃO",{"$nulls":6},{"$f":"SUM(I8:I10)","v":0}]
["1.1.1",null,"CPU","ASSENTAMENTO DAS MOTOBOMBAS NO PONTO DE CAPTAÇÃO","unid.","1",null,{"$f":"ROUND(G8*(1+$I$3),2)","v":0},{"$f":"ROUND(F8*H8,2)","v":0}]
["1.1.2",83725,"Sinapi","ASSENTAMENTO DE PECAS, CONEXOES, APARELHOS E ACESSORIOS DE FERRO FUNDIDO DUCTIL, JUNTA ELASTICA, MECANICA OU FLANGEADA, COM DIAMETROS DE 350 A 600 MM.","Kg",1611.42,null,{"$f":"ROUND(G9*(1+$I$3),2)","v":0},{"$f":"ROUND(F9*H9,2)","v":0}]
["1.1.3",null,"CPU","INSTALAÇÃO ELÉTRICA DO PAINEL E DAS MOTOBOMBAS","unid.","1",null,{"$f":"ROUND(G10*(1+$I$3),2)","v":0},{"$f":"ROUND(F10*H10,2)","v":0}]
["2","ADUTORA DE ÁGUA BRUTA",{"$nulls":6},{"$f":"I12+I15+I18","v":0}]
["2.1","LOCAÇÃO",{"$nulls":6},{"$f":"SUM(I13:I14)","v":0}]
["2.1.1",73679,"Sinapi","LOCAÇÃO DE ADUTORA","m",71.88,null,{"$f":"ROUND(G13*(1+$I$3),2)","v":0},{"$f":"ROUND(F13*H13,2)","v":0}]
["2.1.2","73948/016","Sinapi","LIMPEZA MANUAL DO TERRENO COM RASPAGEM SUPERFICIAL","m²",16.12,null,{"$f":"ROUND(G14*(1+$I$3),2)","v":0},{"$f":"ROUND(F14*H14,2)","v":0}]
["2.2","ASSENTAMENTO DE TUBOS E CONEXÕES ",{"$nulls":6},{"$f":"SUM(I16:I17)","v":0}]
["2.2.1","73839/009","Sinapi","ASSENTAMENTO TUBO AÇO, DN 400 MM, ","m",70.72,null,{"$f":"ROUND(G16*(1+$I$3),2)","v":0},{"$f":"ROUND(F16*H16,2)","v":0}]
["2.2.2",83725,"Sinapi","ASSENTAMENTO DE PECAS, CONEXOES, APARELHOS E ACESSORIOS DE FERRO FUNDIDO DUCTIL, JUNTA ELASTICA, MECANICA OU FLANGEADA, COM DIAMETROS DE 350 A 600 MM.","kg",1612,null,{"$f":"ROUND(G17*(1+$I$3),2)","v":0},{"$f":"ROUND(F17*H17,2)","v":0}]
["2.3","BLOCOS DE ANCORAGEM",{"$nulls":6},{"$f":"SUM(I19:I22)","v":0}]
["2.3.1","73406","Sinapi","CONCRETO FCK=15MPA TRAÇO 1:2,5:3, INCLUIDO PREPARO MECANICO, LANCAMENTO E ADENSAMENTO.","m³",1.56,null,{"$f":"ROUND(G19*(1+$I$3),2)","v":0},{"$f":"ROUND(F19*H19,2)","v":0}]
["2.3.2",5651,"Sinapi","FORMA PLANA EM TÁBUA PARA CONCRETO EM FUNDAÇÕES COM REAPROVEITAMENTO DE 5 VEZES.","m²",8.07,null,{"$f":"ROUND(G20*(1+$I$3),2)","v":0},{"$f":"ROUND(F20*H20,2)","v":0}]
["2.3.3","74254/002","Sinapi","ARMADURA DE AÇO CA 50, COM DIAMETRO DE 6,3 (1/4) A 12,5MM (1/2) INCLUINDO FORNECIMENTO, CORTE (PERCA DE 10%), DOBRA E COLOCAÇÃO","kg",23.34,null,0,{"$f":"ROUND(F21*H21,2)","v":0}]
["2.3.4","73361","Sinapi","CONCRETO CICLOPICO FCK=10MPA 30% PEDRA DE MAO INCLUSIVE LANCAMENTO","m³",3.22,null,0,{"$f":"ROUND(F22*H22,2)","v":0}]
["TOTAL DE SERVIÇOS COM BDI",{"$nulls":7},{"$f":"ROUND(I6+I11,2)","v":0}]

{"sheet":"Cotinguiba_Pindoba","index":2,"n_rows":23,"n_cols":9,"rows_kept":23,"cut":false,"hidden":false,"merged":[[0,0,1,5],[1,6,1,7],[2,0,2,5],[2,6,2,7],[3,0,4,0],[3,1,4,1],[3,2,4,2],[3,3,4,3],[3,4,4,4],[3,5,4,5],[14,1,14,7],[17,1,17,7],[22,0,22,7],[3,6,3,7],[3,8,4,8],[5,1,5,7],[6,1,6,7],[10,1,10,7],[11,1,11,7]]}
[{"$f":"[5]RESUMO!$A$6","v":"READEQUAÇÃO DOS PERÍMETROS IRRIGADOS DA CODEVASF/4ªSR PARA ADAPTAR OS SISTEMAS DE BOMBEAMENTO COM A REDUÇÃO DE VAZÃO DO RIO SÃO FRANCISCO -(Estações de Bombeamento EB2 COTINGUIBA.) "},{"$nulls":5},{"$f":"[5]RESUMO!$G$6","v":"Data Base: JULHO/2015"},"Prazo da Obra:"]
[]
["PLANILHA ORÇAMENTÁRIA DE SERVIÇOS",{"$nulls":5},"BDI (Serviços):",null,{"$f":"BDI_Serviços!E24","v":0}]
["ITEM","CÓDIGO","FONTE","DESCRIÇÃO","UN.","QUANT.","Preço Unitário (R$)",null,"Preço Total (R$)"]
[{"$nulls":6},"Sem BDI","Com BDI"]
["1","CAPTAÇÃO",{"$nulls":6},{"$f":"I7","v":0}]
["1.1","CAPTAÇÃO",{"$nulls":6},{"$f":"SUM(I8:I10)","v":0}]
["1.1.1",null,"CPU","ASSENTAMENTO DAS MOTOBOMBAS NO PONTO DE CAPTAÇÃO","unid.",1,null,{"$f":"ROUND(G8*(1+$I$3),2)","v":0},{"$f":"ROUND(F8*H8,2)","v":0}]
["1.1.2",83725,"Sinapi","ASSENTAMENTO DE PECAS, CONEXOES, APARELHOS E ACESSORIOS DE FERRO FUNDIDO DUCTIL, JUNTA ELASTICA, MECANICA OU FLANGEADA, COM DIAMETROS DE 350 A 600 MM.","Kg",1345,null,{"$f":"ROUND(G9*(1+$I$3),2)","v":0},{"$f":"ROUND(F9*H9,2)","v":0}]
["1.1.3",null,"CPU","INSTALAÇÃO ELÉTRICA DO PAINEL E DAS MOTOBOMBAS","unid.",1,null,{"$f":"ROUND(G10*(1+$I$3),2)","v":0},{"$f":"ROUND(F10*H10,2)","v":0}]
["2","ADUTORA DE ÁGUA BRUTA",{"$nulls":6},{"$f":"I12+I15+I18","v":0}]
["2.1","LOCAÇÃO",{"$nulls":6},{"$f":"SUM(I13:I14)","v":0}]
["2.1.1",73679,"Sinapi","LOCAÇÃO DE ADUTORA","m",60,null,{"$f":"ROUND(G13*(1+$I$3),2)","v":0},{"$f":"ROUND(F13*H13,2)","v":0}]
["2.1.2","73948/016","Sinapi","LIMPEZA MANUAL DO TERRENO COM RASPAGEM SUPERFICIAL","m²",13.46,null,{"$f":"ROUND(G14*(1+$I$3),2)","v":0},{"$f":"ROUND(F14*H14,2)","v":0}]
["2.2","ASSENTAMENTO DE TUBOS E CONEXÕES ",{"$nulls":6},{"$f":"SUM(I16:I17)","v":0}]
["2.1.1","73839/009","Sinapi","ASSENTAMENTO TUBO AÇO, DN 400 MM, ","m",60,null,{"$f":"ROUND(G16*(1+$I$3),2)","v":0},{"$f":"ROUND(F16*H16,2)","v":0}]
["2.1.2",83725,"Sinapi","ASSENTAMENTO DE PECAS, CONEXOES, APARELHOS E ACESSORIOS DE FERRO FUNDIDO DUCTIL, JUNTA ELASTICA, MECANICA OU FLANGEADA, COM DIAMETROS DE 350 A 600 MM.","kg",1345.5,null,{"$f":"ROUND(G17*(1+$I$3),2)","v":0},{"$f":"ROUND(F17*H17,2)","v":0}]
["2.3","BLOCOS DE ANCORAGEM",{"$nulls":6},{"$f":"SUM(I19:I22)","v":0}]
["2.3.1","73406","Sinapi","CONCRETO FCK=15MPA TRAÇO 1:2,5:3, INCLUIDO PREPARO MECANICO, LANCAMENTO E ADENSAMENTO.","m³",1.31,null,{"$f":"ROUND(G19*(1+$I$3),2)","v":0},{"$f":"ROUND(F19*H19,2)","v":0}]
["2.3.2",5651,"Sinapi","FORMA PLANA EM TÁBUA PARA CONCRETO EM FUNDAÇÕES COM REAPROVEITAMENTO DE 5 VEZES.","m²",6.73,null,{"$f":"ROUND(G20*(1+$I$3),2)","v":0},{"$f":"ROUND(F20*H20,2)","v":0}]
["2.3.3","74254/002","Sinapi","ARMADURA DE AÇO CA 50, COM DIAMETRO DE 6,3 (1/4) A 12,5MM (1/2) INCLUINDO FORNECIMENTO, CORTE (PERCA DE 10%), DOBRA E COLOCAÇÃO","kg",20,null,0,{"$f":"ROUND(F21*H21,2)","v":0}]
["2.3.4","73361","Sinapi","CONCRETO CICLOPICO FCK=10MPA 30% PEDRA DE MAO INCLUSIVE LANCAMENTO","m³",2.69,null,0,{"$f":"ROUND(F22*H22,2)","v":0}]
["TOTAL DE SERVIÇOS COM BDI",{"$nulls":7},{"$f":"ROUND(I6+I11,2)","v":0}]

{"sheet":"Betume EB2 e EB3","index":3,"n_rows":23,"n_cols":9,"rows_kept":23,"cut":false,"hidden":false,"merged":[[0,0,1,5],[1,6,1,7],[2,0,2,5],[2,6,2,7],[3,0,4,0],[3,1,4,1],[3,2,4,2],[3,3,4,3],[3,4,4,4],[3,5,4,5],[14,1,14,7],[17,1,17,7],[22,0,22,7],[3,6,3,7],[3,8,4,8],[5,1,5,7],[6,1,6,7],[10,1,10,7],[11,1,11,7]]}
[{"$f":"[6]RESUMO!$A$6","v":"READEQUAÇÃO DOS PERÍMETROS IRRIGADOS DA CODEVASF/4ªSR PARA ADAPTAR OS SISTEMAS DE BOMBEAMENTO COM A REDUÇÃO DE VAZÃO DO RIO SÃO FRANCISCO -(Estações de Bombeamento EB2 e EB3.) "},{"$nulls":5},{"$f":"[6]RESUMO!$G$6","v":"Data Base: JULHO/2015"},"Prazo da Obra:"]
[]
["PLANILHA ORÇAMENTÁRIA DE SERVIÇOS",{"$nulls":5},"BDI (Serviços):",null,{"$f":"BDI_Serviços!E24","v":0}]
["ITEM","CÓDIGO","FONTE","DESCRIÇÃO","UN.","QUANT.","Preço Unitário (R$)",null,"Preço Total (R$)"]
[{"$nulls":6},"Sem BDI","Com BDI"]
["1","CAPTAÇÃO-PARÍ",{"$nulls":6},{"$f":"I7","v":0}]
["1.1","CAPTAÇÃO-PARÍ",{"$nulls":6},{"$f":"SUM(I8:I10)","v":0}]
["1.1.1",null,"CPU","ASSENTAMENTO DAS MOTOBOMBAS NO PONTO DE CAPTAÇÃO","unid.",1,null,{"$f":"ROUND(G8*(1+$I$3),2)","v":0},{"$f":"ROUND(F8*H8,2)","v":0}]
["1.1.2",83725,"Sinapi","ASSENTAMENTO DE PECAS, CONEXOES, APARELHOS E ACESSORIOS DE FERRO FUNDIDO DUCTIL, JUNTA ELASTICA, MECANICA OU FLANGEADA, COM DIAMETROS DE 350 A 600 MM.","Kg",1950,null,{"$f":"ROUND(G9*(1+$I$3),2)","v":0},{"$f":"ROUND(F9*H9,2)","v":0}]
["1.1.3",null,"CPU","INSTALAÇÃO ELÉTRICA DO PAINEL E DAS MOTOBOMBAS","unid.",1,null,{"$f":"ROUND(G10*(1+$I$3),2)","v":0},{"$f":"ROUND(F10*H10,2)","v":0}]
["2","ADUTORA DE ÁGUA BRUTA",{"$nulls":6},{"$f":"I12+I15+I18","v":0}]
["2.1","LOCAÇÃO",{"$nulls":6},{"$f":"SUM(I13:I14)","v":0}]
["2.1.1",73679,"Sinapi","LOCAÇÃO DE ADUTORA","m",9.75,null,{"$f":"ROUND(G13*(1+$I$3),2)","v":0},{"$f":"ROUND(F13*H13,2)","v":0}]
["3.1.2","73948/016","Sinapi","LIMPEZA MANUAL DO TERRENO COM RASPAGEM SUPERFICIAL","m²",19.5,null,{"$f":"ROUND(G14*(1+$I$3),2)","v":0},{"$f":"ROUND(F14*H14,2)","v":0}]
["2.2","ASSENTAMENTO DE TUBOS E CONEXÕES ",{"$nulls":6},{"$f":"SUM(I16:I17)","v":0}]
["2.2.1","73839/009","Sinapi","ASSENTAMENTO TUBO AÇO, DN 400 MM, ","m",30,null,{"$f":"ROUND(G16*(1+$I$3),2)","v":0},{"$f":"ROUND(F16*H16,2)","v":0}]
["2.2.2",83725,"Sinapi","ASSENTAMENTO DE PECAS, CONEXOES, APARELHOS E ACESSORIOS DE FERRO FUNDIDO DUCTIL, JUNTA ELASTICA, MECANICA OU FLANGEADA, COM DIAMETROS DE 350 A 600 MM.","kg",1950,null,{"$f":"ROUND(G17*(1+$I$3),2)","v":0},{"$f":"ROUND(F17*H17,2)","v":0}]
["2.3","BLOCOS DE ANCORAGEM",{"$nulls":6},{"$f":"SUM(I19:I22)","v":0}]
["2.3.1","73406","Sinapi","CONCRETO FCK=15MPA TRAÇO 1:2,5:3, INCLUIDO PREPARO MECANICO, LANCAMENTO E ADENSAMENTO.","m³",1.9,null,{"$f":"ROUND(G19*(1+$I$3),2)","v":0},{"$f":"ROUND(F19*H19,2)","v":0}]
["2.3.2",5651,"Sinapi","FORMA PLANA EM TÁBUA PARA CONCRETO EM FUNDAÇÕES COM REAPROVEITAMENTO DE 5 VEZES.","m²",9.75,null,{"$f":"ROUND(G20*(1+$I$3),2)","v":0},{"$f":"ROUND(F20*H20,2)","v":0}]
["2.3.3","74254/002","Sinapi","ARMADURA DE AÇO CA 50, COM DIAMETRO DE 6,3 (1/4) A 12,5MM (1/2) INCLUINDO FORNECIMENTO, CORTE (PERCA DE 10%), DOBRA E COLOCAÇÃO","kg",39,null,0,{"$f":"ROUND(F21*H21,2)","v":0}]
["2.3.4","73361","Sinapi","CONCRETO CICLOPICO FCK=10MPA 30% PEDRA DE MAO INCLUSIVE LANCAMENTO","m³",3.9,null,0,{"$f":"ROUND(F22*H22,2)","v":0}]
["TOTAL DE SERVIÇOS COM BDI",{"$nulls":7},{"$f":"ROUND(I6+I11,2)","v":0}]

{"sheet":"Betume EB2 e EB3 - interligação","index":4,"n_rows":20,"n_cols":9,"rows_kept":20,"cut":false,"hidden":false,"merged":[[11,1,11,7],[14,1,14,7],[19,0,19,7],[3,6,3,7],[3,8,4,8],[5,1,5,7],[6,1,6,7],[8,1,8,7],[9,1,9,7],[0,0,1,5],[1,6,1,7],[2,0,2,5],[2,6,2,7],[3,0,4,0],[3,1,4,1],[3,2,4,2],[3,3,4,3],[3,4,4,4],[3,5,4,5]]}
[{"$f":"[6]RESUMO!$A$6","v":"READEQUAÇÃO DOS PERÍMETROS IRRIGADOS DA CODEVASF/4ªSR PARA ADAPTAR OS SISTEMAS DE BOMBEAMENTO COM A REDUÇÃO DE VAZÃO DO RIO SÃO FRANCISCO -(Estações de Bombeamento EB2 e EB3.) "},{"$nulls":5},{"$f":"[6]RESUMO!$G$6","v":"Data Base: JULHO/2015"},"Prazo da Obra:"]
[]
["PLANILHA ORÇAMENTÁRIA DE SERVIÇOS",{"$nulls":5},"BDI (Serviços):",null,{"$f":"BDI_Serviços!E24","v":0}]
["ITEM","CÓDIGO","FONTE","DESCRIÇÃO","UN.","QUANT.","Preço Unitário (R$)",null,"Preço Total (R$)"]
[{"$nulls":6},"Sem BDI","Com BDI"]
["1","INTERLIGAÇÃO DOS CANAIS ",{"$nulls":6},{"$f":"I7","v":0}]
["1.1","INTERLIGAÇÃO DOS CANAIS ",{"$nulls":6},{"$f":"SUM(I8:I8)","v":0}]
["1.1.2",83725,"Sinapi","ASSENTAMENTO DE PECAS, CONEXOES, APARELHOS E ACESSORIOS DE FERRO FUNDIDO DUCTIL, JUNTA ELASTICA, MECANICA OU FLANGEADA, COM DIAMETROS DE 350 A 600 MM.","Kg",709,null,{"$f":"ROUND(G8*(1+$I$3),2)","v":0},{"$f":"ROUND(F8*H8,2)","v":0}]
["2","ADUTORA DE ÁGUA BRUTA",{"$nulls":6},{"$f":"I10+I12+I15","v":0}]
["2.1","LOCAÇÃO",{"$nulls":6},{"$f":"SUM(I11:I11)","v":0}]
["2.1.1",73679,"Sinapi","LOCAÇÃO DE ADUTORA","m",24.82,null,{"$f":"ROUND(G11*(1+$I$3),2)","v":0},{"$f":"ROUND(F11*H11,2)","v":0}]
["2.2","ASSENTAMENTO DE TUBOS E CONEXÕES ",{"$nulls":6},{"$f":"SUM(I13:I14)","v":0}]
["2.2.1","73839/009","Sinapi","ASSENTAMENTO TUBO AÇO, DN 400 MM, ","m",40,null,{"$f":"ROUND(G13*(1+$I$3),2)","v":0},{"$f":"ROUND(F13*H13,2)","v":0}]
["2.2.3",83725,"Sinapi","ASSENTAMENTO DE PECAS, CONEXOES, APARELHOS E ACESSORIOS DE FERRO FUNDIDO DUCTIL, JUNTA ELASTICA, MECANICA OU FLANGEADA, COM DIAMETROS DE 350 A 600 MM.","kg",709,null,{"$f":"ROUND(G14*(1+$I$3),2)","v":0},{"$f":"ROUND(F14*H14,2)","v":0}]
["2.3","BLOCOS DE ANCORAGEM",{"$nulls":6},{"$f":"SUM(I16:I19)","v":0}]
["2.3.1","73406","Sinapi","CONCRETO FCK=15MPA TRAÇO 1:2,5:3, INCLUIDO PREPARO MECANICO, LANCAMENTO E ADENSAMENTO.","m³",1.42,null,{"$f":"ROUND(G16*(1+$I$3),2)","v":0},{"$f":"ROUND(F16*H16,2)","v":0}]
["2.3.2",5651,"Sinapi","FORMA PLANA EM TÁBUA PARA CONCRETO EM FUNDAÇÕES COM REAPROVEITAMENTO DE 5 VEZES.","m²",7.09,null,{"$f":"ROUND(G17*(1+$I$3),2)","v":0},{"$f":"ROUND(F17*H17,2)","v":0}]
["2.3.3","74254/002","Sinapi","ARMADURA DE AÇO CA 50, COM DIAMETRO DE 6,3 (1/4) A 12,5MM (1/2) INCLUINDO FORNECIMENTO, CORTE (PERCA DE 10%), DOBRA E COLOCAÇÃO","kg",14.18,null,0,{"$f":"ROUND(F18*H18,2)","v":0}]
["2.3.4","73361","Sinapi","CONCRETO CICLOPICO FCK=10MPA 30% PEDRA DE MAO INCLUSIVE LANCAMENTO","m³",4.5,null,0,{"$f":"ROUND(F19*H19,2)","v":0}]
["TOTAL DE SERVIÇOS COM BDI",{"$nulls":7},{"$f":"I6+I9","v":0}]

{"sheet":"Betume EB5","index":5,"n_rows":23,"n_cols":9,"rows_kept":23,"cut":false,"hidden":false,"merged":[[14,1,14,7],[17,1,17,7],[22,0,22,7],[3,6,3,7],[3,8,4,8],[5,1,5,7],[6,1,6,7],[10,1,10,7],[11,1,11,7],[0,0,1,5],[1,6,1,7],[2,0,2,5],[2,6,2,7],[3,0,4,0],[3,1,4,1],[3,2,4,2],[3,3,4,3],[3,4,4,4],[3,5,4,5]]}
[{"$f":"[7]RESUMO!$A$6","v":"READEQUAÇÃO DOS PERÍMETROS IRRIGADOS DA CODEVASF/4ªSR PARA ADAPTAR OS SISTEMAS DE BOMBEAMENTO COM A REDUÇÃO DE VAZÃO DO RIO SÃO FRANCISCO -(Estações de Bombeamento EB5.) "},{"$nulls":5},{"$f":"[7]RESUMO!$G$6","v":"Data Base: JULHO/2015"},"Prazo da Obra:"]
[]
["PLANILHA ORÇAMENTÁRIA DE SERVIÇOS",{"$nulls":5},"BDI (Serviços):",null,{"$f":"BDI_Serviços!E24","v":0}]
["ITEM","CÓDIGO","FONTE","DESCRIÇÃO","UN.","QUANT.","Preço Unitário (R$)",null,"Preço Total (R$)"]
[{"$nulls":6},"Sem BDI","Com BDI"]
["1","CAPTAÇÃO",{"$nulls":6},{"$f":"I7","v":0}]
["1.1","CAPTAÇÃO",{"$nulls":6},{"$f":"SUM(I8:I10)","v":0}]
["1.1.1",null,"CPU","ASSENTAMENTO DAS MOTOBOMBAS NO PONTO DE CAPTAÇÃO","unid.",1,null,{"$f":"ROUND(G8*(1+$I$3),2)","v":0},{"$f":"ROUND(F8*H8,2)","v":0}]
["1.1.2",83725,"Sinapi","ASSENTAMENTO DE PECAS, CONEXOES, APARELHOS E ACESSORIOS DE FERRO FUNDIDO DUCTIL, JUNTA ELASTICA, MECANICA OU FLANGEADA, COM DIAMETROS DE 350 A 600 MM.","Kg",1345,null,{"$f":"ROUND(G9*(1+$I$3),2)","v":0},{"$f":"ROUND(F9*H9,2)","v":0}]
["1.1.3",null,"CPU","INSTALAÇÃO ELÉTRICA DO PAINEL E DAS MOTOBOMBAS","unid.",1,null,0,{"$f":"ROUND(F10*H10,2)","v":0}]
["2","ADUTORA DE ÁGUA BRUTA",{"$nulls":6},{"$f":"I12+I15+I18","v":0}]
["2.1","LOCAÇÃO",{"$nulls":6},{"$f":"SUM(I13:I14)","v":0}]
["2.1.1",73679,"Sinapi","LOCAÇÃO DE ADUTORA","m",60,null,{"$f":"ROUND(G13*(1+$I$3),2)","v":0},{"$f":"ROUND(F13*H13,2)","v":0}]
["2.1.2","73948/016","Sinapi","LIMPEZA MANUAL DO TERRENO COM RASPAGEM SUPERFICIAL","m²",13.46,null,{"$f":"ROUND(G14*(1+$I$3),2)","v":0},{"$f":"ROUND(F14*H14,2)","v":0}]
["2.2","ASSENTAMENTO DE TUBOS E CONEXÕES ",{"$nulls":6},{"$f":"SUM(I16:I17)","v":0}]
["2.2.1","73839/009","Sinapi","ASSENTAMENTO TUBO AÇO, DN 400 MM, ","m",60,null,{"$f":"ROUND(G16*(1+$I$3),2)","v":0},{"$f":"ROUND(F16*H16,2)","v":0}]
["2.2.3",83725,"Sinapi","ASSENTAMENTO DE PECAS, CONEXOES, APARELHOS E ACESSORIOS DE FERRO FUNDIDO DUCTIL, JUNTA ELASTICA, MECANICA OU FLANGEADA, COM DIAMETROS DE 350 A 600 MM.","kg",1345.5,null,{"$f":"ROUND(G17*(1+$I$3),2)","v":0},{"$f":"ROUND(F17*H17,2)","v":0}]
["2.3","BLOCOS DE ANCORAGEM",{"$nulls":6},{"$f":"SUM(I19:I22)","v":0}]
["2.3.1","73406","Sinapi","CONCRETO FCK=15MPA TRAÇO 1:2,5:3, INCLUIDO PREPARO MECANICO, LANCAMENTO E ADENSAMENTO.","m³",1.31,null,{"$f":"ROUND(G19*(1+$I$3),2)","v":0},{"$f":"ROUND(F19*H19,2)","v":0}]
["2.3.2",5651,"Sinapi","FORMA PLANA EM TÁBUA PARA CONCRETO EM FUNDAÇÕES COM REAPROVEITAMENTO DE 5 VEZES.","m²",6.73,null,{"$f":"ROUND(G20*(1+$I$3),2)","v":0},{"$f":"ROUND(F20*H20,2)","v":0}]
["2.3.3","74254/002","Sinapi","ARMADURA DE AÇO CA 50, COM DIAMETRO DE 6,3 (1/4) A 12,5MM (1/2) INCLUINDO FORNECIMENTO, CORTE (PERCA DE 10%), DOBRA E COLOCAÇÃO","kg",20,null,0,{"$f":"ROUND(F21*H21,2)","v":0}]
["2.3.4","73361","Sinapi","CONCRETO CICLOPICO FCK=10MPA 30% PEDRA DE MAO INCLUSIVE LANCAMENTO","m³",2.69,null,0,{"$f":"ROUND(F22*H22,2)","v":0}]
["TOTAL DE SERVIÇOS COM BDI",{"$nulls":7},{"$f":"ROUND(I6+I11,2)","v":0}]

{"sheet":"Betume EB7","index":6,"n_rows":23,"n_cols":9,"rows_kept":23,"cut":false,"hidden":false,"merged":[[14,1,14,7],[17,1,17,7],[22,0,22,7],[3,6,3,7],[3,8,4,8],[5,1,5,7],[6,1,6,7],[10,1,10,7],[11,1,11,7],[0,0,1,5],[1,6,1,7],[2,0,2,5],[2,6,2,7],[3,0,4,0],[3,1,4,1],[3,2,4,2],[3,3,4,3],[3,4,4,4],[3,5,4,5]]}
[{"$f":"[8]RESUMO!$A$6","v":"READEQUAÇÃO DOS PERÍMETROS IRRIGADOS DA CODEVASF/4ªSR PARA ADAPTAR OS SISTEMAS DE BOMBEAMENTO COM A REDUÇÃO DE VAZÃO DO RIO SÃO FRANCISCO -(Estações de Bombeamento EB7.) "},{"$nulls":5},{"$f":"[8]RESUMO!$G$6","v":"Data Base: JULHO/2015"},"Prazo da Obra:"]
[]
["PLANILHA ORÇAMENTÁRIA DE SERVIÇOS",{"$nulls":5},"BDI (Serviços):",null,{"$f":"BDI_Serviços!E24","v":0}]
["ITEM","CÓDIGO","FONTE","DESCRIÇÃO","UN.","QUANT.","Preço Unitário (R$)",null,"Preço Total (R$)"]
[{"$nulls":6},"Sem BDI","Com BDI"]
["1","CAPTAÇÃO",{"$nulls":6},{"$f":"I7","v":0}]
["1.1","CAPTAÇÃO",{"$nulls":6},{"$f":"SUM(I8:I9)","v":0}]
["1.1.1",null,"CPU","ASSENTAMENTO DAS MOTOBOMBAS NO PONTO DE CAPTAÇÃO","unid.",1,null,{"$f":"ROUND(G8*(1+$I$3),2)","v":0},{"$f":"ROUND(F8*H8,2)","v":0}]
["1.1.2",83725,"Sinapi","ASSENTAMENTO DE PECAS, CONEXOES, APARELHOS E ACESSORIOS DE FERRO FUNDIDO DUCTIL, JUNTA ELASTICA, MECANICA OU FLANGEADA, COM DIAMETROS DE 350 A 600 MM.","Kg",774.72,null,{"$f":"ROUND(G9*(1+$I$3),2)","v":0},{"$f":"ROUND(F9*H9,2)","v":0}]
["1.1.3",null,"CPU","INSTALAÇÃO ELÉTRICA DO PAINEL E DAS MOTOBOMBAS","unid.",1,null,0,{"$f":"ROUND(F10*H10,2)","v":0}]
["2","ADUTORA DE ÁGUA BRUTA",{"$nulls":6},{"$f":"I12+I15+I18","v":0}]
["2.1","LOCAÇÃO",{"$nulls":6},{"$f":"SUM(I13:I14)","v":0}]
["2.1.1",73679,"Sinapi","LOCAÇÃO DE ADUTORA","m",34.56,null,{"$f":"ROUND(G13*(1+$I$3),2)","v":0},{"$f":"ROUND(F13*H13,2)","v":0}]
["2.1.2","73948/016","Sinapi","LIMPEZA MANUAL DO TERRENO COM RASPAGEM SUPERFICIAL","m²",7.75,null,{"$f":"ROUND(G14*(1+$I$3),2)","v":0},{"$f":"ROUND(F14*H14,2)","v":0}]
["2.2","ASSENTAMENTO DE TUBOS E CONEXÕES ",{"$nulls":6},{"$f":"SUM(I16:I17)","v":0}]
["2.2.1","73839/009","Sinapi","ASSENTAMENTO TUBO AÇO, DN 400 MM, ","m",34,null,{"$f":"ROUND(G16*(1+$I$3),2)","v":0},{"$f":"ROUND(F16*H16,2)","v":0}]
["2.2.3",83725,"Sinapi","ASSENTAMENTO DE PECAS, CONEXOES, APARELHOS E ACESSORIOS DE FERRO FUNDIDO DUCTIL, JUNTA ELASTICA, MECANICA OU FLANGEADA, COM DIAMETROS DE 350 A 600 MM.","kg",775,null,{"$f":"ROUND(G17*(1+$I$3),2)","v":0},{"$f":"ROUND(F17*H17,2)","v":0}]
["2.3","BLOCOS DE ANCORAGEM",{"$nulls":6},{"$f":"SUM(I19:I22)","v":0}]
["2.3.1","73406","Sinapi","CONCRETO FCK=15MPA TRAÇO 1:2,5:3, INCLUIDO PREPARO MECANICO, LANCAMENTO E ADENSAMENTO.","m³",0.75,null,{"$f":"ROUND(G19*(1+$I$3),2)","v":0},{"$f":"ROUND(F19*H19,2)","v":0}]
["2.3.2",5651,"Sinapi","FORMA PLANA EM TÁBUA PARA CONCRETO EM FUNDAÇÕES COM REAPROVEITAMENTO DE 5 VEZES.","m²",3.88,null,{"$f":"ROUND(G20*(1+$I$3),2)","v":0},{"$f":"ROUND(F20*H20,2)","v":0}]
["2.3.3","74254/002","Sinapi","ARMADURA DE AÇO CA 50, COM DIAMETRO DE 6,3 (1/4) A 12,5MM (1/2) INCLUINDO FORNECIMENTO, CORTE (PERCA DE 10%), DOBRA E COLOCAÇÃO","kg",11.51,null,0,{"$f":"ROUND(F21*H21,2)","v":0}]
["2.3.4","73361","Sinapi","CONCRETO CICLOPICO FCK=10MPA 30% PEDRA DE MAO INCLUSIVE LANCAMENTO","m³",1.55,null,0,{"$f":"ROUND(F22*H22,2)","v":0}]
["TOTAL DE SERVIÇOS COM BDI",{"$nulls":7},{"$f":"ROUND(I6+I11,2)","v":0}]

{"sheet":"Betume EB8","index":7,"n_rows":23,"n_cols":9,"rows_kept":23,"cut":false,"hidden":false,"merged":[[14,1,14,7],[17,1,17,7],[22,0,22,7],[3,6,3,7],[3,8,4,8],[5,1,5,7],[6,1,6,7],[10,1,10,7],[11,1,11,7],[0,0,1,5],[1,6,1,7],[2,0,2,5],[2,6,2,7],[3,0,4,0],[3,1,4,1],[3,2,4,2],[3,3,4,3],[3,4,4,4],[3,5,4,5]]}
[{"$f":"[9]RESUMO!$A$6","v":"READEQUAÇÃO DOS PERÍMETROS IRRIGADOS DA CODEVASF/4ªSR PARA ADAPTAR OS SISTEMAS DE BOMBEAMENTO COM A REDUÇÃO DE VAZÃO DO RIO SÃO FRANCISCO -(Estações de Bombeamento EB8.) "},{"$nulls":5},{"$f":"[9]RESUMO!$G$6","v":"Data Base: JULHO/2015"},"Prazo da Obra:"]
[]
["PLANILHA ORÇAMENTÁRIA DE SERVIÇOS",{"$nulls":5},"BDI (Serviços):",null,{"$f":"BDI_Serviços!E24","v":0}]
["ITEM","CÓDIGO","FONTE","DESCRIÇÃO","UN.","QUANT.","Preço Unitário (R$)",null,"Preço Total (R$)"]
[{"$nulls":6},"Sem BDI","Com BDI"]
["1","CAPTAÇÃO",{"$nulls":6},{"$f":"I7","v":0}]
["1.1","CAPTAÇÃO",{"$nulls":6},{"$f":"SUM(I8:I9)","v":0}]
["1.1.1",null,"CPU","ASSENTAMENTO DAS MOTOBOMBAS NO PONTO DE CAPTAÇÃO","unid.",1,null,{"$f":"ROUND(G8*(1+$I$3),2)","v":0},{"$f":"ROUND(F8*H8,2)","v":0}]
["1.1.2",83725,"Sinapi","ASSENTAMENTO DE PECAS, CONEXOES, APARELHOS E ACESSORIOS DE FERRO FUNDIDO DUCTIL, JUNTA ELASTICA, MECANICA OU FLANGEADA, COM DIAMETROS DE 350 A 600 MM.","Kg",774.72,null,{"$f":"ROUND(G9*(1+$I$3),2)","v":0},{"$f":"ROUND(F9*H9,2)","v":0}]
["1.1.3",null,"CPU","INSTALAÇÃO ELÉTRICA DO PAINEL E DAS MOTOBOMBAS","unid.",1,null,0,{"$f":"ROUND(F10*H10,2)","v":0}]
["2","ADUTORA DE ÁGUA BRUTA",{"$nulls":6},{"$f":"I12+I15+I18","v":0}]
["2.1","LOCAÇÃO",{"$nulls":6},{"$f":"SUM(I13:I14)","v":0}]
["2.1.1",73679,"Sinapi","LOCAÇÃO DE ADUTORA","m",34.56,null,{"$f":"ROUND(G13*(1+$I$3),2)","v":0},{"$f":"ROUND(F13*H13,2)","v":0}]
["2.1.2","73948/016","Sinapi","LIMPEZA MANUAL DO TERRENO COM RASPAGEM SUPERFICIAL","m²",7.75,null,{"$f":"ROUND(G14*(1+$I$3),2)","v":0},{"$f":"ROUND(F14*H14,2)","v":0}]
["2.2","ASSENTAMENTO DE TUBOS E CONEXÕES ",{"$nulls":6},{"$f":"SUM(I16:I17)","v":0}]
["2.2.1","73839/009","Sinapi","ASSENTAMENTO TUBO AÇO, DN 400 MM, ","m",34,null,{"$f":"ROUND(G16*(1+$I$3),2)","v":0},{"$f":"ROUND(F16*H16,2)","v":0}]
["2.2.2",83725,"Sinapi","ASSENTAMENTO DE PECAS, CONEXOES, APARELHOS E ACESSORIOS DE FERRO FUNDIDO DUCTIL, JUNTA ELASTICA, MECANICA OU FLANGEADA, COM DIAMETROS DE 350 A 600 MM.","kg",775,null,{"$f":"ROUND(G17*(1+$I$3),2)","v":0},{"$f":"ROUND(F17*H17,2)","v":0}]
["2.3","BLOCOS DE ANCORAGEM",{"$nulls":6},{"$f":"SUM(I19:I22)","v":0}]
["2.3.1","73406","Sinapi","CONCRETO FCK=15MPA TRAÇO 1:2,5:3, INCLUIDO PREPARO MECANICO, LANCAMENTO E ADENSAMENTO.","m³",0.75,null,{"$f":"ROUND(G19*(1+$I$3),2)","v":0},{"$f":"ROUND(F19*H19,2)","v":0}]
["2.3.2",5651,"Sinapi","FORMA PLANA EM TÁBUA PARA CONCRETO EM FUNDAÇÕES COM REAPROVEITAMENTO DE 5 VEZES.","m²",3.88,null,{"$f":"ROUND(G20*(1+$I$3),2)","v":0},{"$f":"ROUND(F20*H20,2)","v":0}]
["2.3.3","74254/002","Sinapi","ARMADURA DE AÇO CA 50, COM DIAMETRO DE 6,3 (1/4) A 12,5MM (1/2) INCLUINDO FORNECIMENTO, CORTE (PERCA DE 10%), DOBRA E COLOCAÇÃO","kg",11.51,null,0,{"$f":"ROUND(F21*H21,2)","v":0}]
["2.3.4","73361","Sinapi","CONCRETO CICLOPICO FCK=10MPA 30% PEDRA DE MAO INCLUSIVE LANCAMENTO","m³",1.55,null,0,{"$f":"ROUND(F22*H22,2)","v":0}]
["TOTAL DE SERVIÇOS COM BDI",{"$nulls":7},{"$f":"ROUND(I6+I11,2)","v":0}]

{"sheet":"CPU","index":8,"n_rows":181,"n_cols":7,"rows_kept":181,"cut":false,"hidden":false,"merged":[[145,0,145,1],[131,0,132,0],[132,1,132,4],[133,1,133,6],[134,3,134,4],[135,3,135,4],[136,1,136,5],[137,1,137,6],[138,3,138,4],[139,3,139,4],[13,1,13,5],[0,0,0,1],[1,0,2,0],[2,1,2,4],[3,1,3,6],[4,3,4,4],[5,3,5,4],[6,1,6,5],[7,1,7,6],[8,3,8,4],[9,3,9,4],[10,1,10,5],[26,1,26,5],[29,1,29,5],[30,1,30,6],[32,0,32,1],[33,0,34,0],[34,1,34,4],[25,3,25,4],[14,1,14,6],[16,0,16,1],[17,0,18,0],[18,1,18,4],[19,1,19,6],[20,3,20,4],[21,3,21,4],[22,1,22,5],[23,1,23,6],[24,3,24,4],[54,1,54,6],[47,1,47,6],[48,3,48,4],[49,3,49,4],[50,1,50,5],[53,1,53,5],[46,1,46,5],[35,1,35,6],[36,3,36,4],[37,3,37,4],[38,1,38,5],[39,1,39,6],[40,3,40,4],[41,3,41,4],[42,3,42,4],[43,3,43,4],[44,3,44,4],[45,3,45,4],[91,3,91,4],[92,1,92,5],[93,1,93,6],[94,3,94,4],[95,3,95,4],[86,0,86,1],[87,0,88,0],[88,1,88,4],[89,1,89,6],[90,3,90,4],[176,3,176,4],[167,1,167,6],[168,3,168,4],[169,3,169,4],[170,1,170,5],[171,1,171,6],[96,1,96,5],[99,1,99,5],[164,0,164,1],[165,0,166,0],[166,1,166,4],[158,1,158,5],[161,1,161,5],[162,1,162,6],[100,0,100,1],[101,0,102,0],[102,1,102,4],[103,1,103,6],[104,3,104,4],[105,3,105,4],[106,1,106,5],[130,0,130,1],[114,1,114,6],[115,0,115,1],[55,0,55,1],[56,0,57,0],[57,1,57,4],[58,1,58,6],[59,3,59,4],[177,1,177,5],[180,1,180,5],[181,1,181,6],[146,0,147,0],[147,1,147,4],[148,1,148,6],[149,3,149,4],[150,3,150,4],[151,1,151,5],[152,1,152,6],[153,3,153,4],[154,3,154,4],[155,3,155,4],[156,3,156,4],[157,3,157,4],[172,3,172,4],[173,3,173,4],[174,3,174,4],[175,3,175,4],[65,1,65,5],[68,1,68,5],[69,1,69,6],[70,0,70,1],[71,0,72,0],[72,1,72,4],[60,3,60,4],[61,1,61,5],[62,1,62,6],[63,3,63,4],[64,3,64,4],[78,3,78,4],[79,3,79,4],[80,1,80,5],[83,1,83,5],[84,1,84,6],[73,1,73,6],[74,3,74,4],[75,3,75,4],[76,1,76,5],[77,1,77,6],[116,0,117,0],[117,1,117,4],[118,1,118,6],[107,1,107,6],[108,3,108,4],[109,3,109,4],[110,1,110,5],[113,1,113,5],[124,3,124,4],[125,1,125,5],[128,1,128,5],[119,3,119,4],[120,3,120,4],[121,1,121,5],[122,1,122,6],[123,3,123,4],[140,1,140,5],[143,1,143,5]]}
[" COMPOSIÇÃO DE PREÇO UNITÁRIO",null,null,"1.0"]
["Cód. SINAPI"]
[null,"SERVIÇO: MOBILIZAÇÃO (Propriá, Cotinguiba-Pindoba, Betume)",null,null,null,"UNIDADE: ","UD"]
[null,"EQUIPAMENTO"]
[null,"DISCRIMINAÇÃO","UNIDADE","QUANT.",null,"P.UNIT. ","P.TOTAL"]
[3366,"Guindaste tipo Munck, cap 5T, Locação com operador, combustível e manutenção","h",28,null,null,{"$f":"D6*F6","v":0}]
[null,"SUB-TOTAL",{"$nulls":4},{"$f":"G6","v":0}]
[null,"MÃO-DE-OBRA"]
[null,"DISCRIMINAÇÃO","UNIDADE","QUANT.",null,"P.UNIT.","P.TOTAL"]
[6111,"Servente","h",28,null,null,{"$f":"D10*F10","v":0}]
[null,"SUB-TOTAL",{"$nulls":4},{"$f":"G10","v":0}]
[]
[null,"Encargos sociais e trabalhistas"]
[null,"CUSTO UNITÁRIO TOTAL",{"$nulls":4},{"$f":"G7+G11","v":0}]
[]
[]
[" COMPOSIÇÃO DE PREÇO UNITÁRIO",null,null,"1.1"]
["Cód. SINAPI"]
[null,"SERVIÇO: DESMOBILIZAÇÃO (Propriá, Cotinguiba-Pindoba, Betume)",null,null,null,"UNIDADE: ","UD"]
[null,"EQUIPAMENTO"]
[null,"DISCRIMINAÇÃO","UNIDADE","QUANT.",null,"P.UNIT. ","P.TOTAL"]
[3366,"Guindaste tipo Munck, cap 5T, Locação com operador, combustível e manutenção","h",8,null,null,{"$f":"D22*F22","v":0}]
[null,"SUB-TOTAL",{"$nulls":4},{"$f":"G22","v":0}]
[null,"MÃO-DE-OBRA"]
[null,"DISCRIMINAÇÃO","UNIDADE","QUANT.",null,"P.UNIT.","P.TOTAL"]
[6111,"Servente","h",8,null,null,{"$f":"D26*F26","v":0}]
[null,"SUB-TOTAL",{"$nulls":4},{"$f":"G26","v":0}]
[]
[null,"Encargos sociais e trabalhistas"]
[null,"CUSTO UNITÁRIO TOTAL",{"$nulls":4},{"$f":"G23+G27","v":0}]
[]
[]
[" COMPOSIÇÃO DE PREÇO UNITÁRIO",null,null,"1.2"]
["Cód. SINAPI"]
[null,"SERVIÇO: ADMINISTRAÇÃO LOCAL (Propriá, Cotinguiba-Pindoba, Betume)",null,null,null,"UNIDADE: ","Mês"]
[null,"EQUIPAMENTO"]
[null,"DISCRIMINAÇÃO","UNIDADE","QUANT.",null,"P.UNIT. ","P.TOTAL"]
["Codevasf","Veículo tipo pick-up, cabine dupla, 4 x 4 ","mês",1,null,null,{"$f":"D38*F38","v":0}]
[null,"SUB-TOTAL",{"$nulls":4},{"$f":"G38","v":0}]
[null,"MATERIAL"]
[null,"DISCRIMINAÇÃO","UNIDADE","QUANT.",null,"P.UNIT. ","P.TOTAL"]
[null,"Telefone ","mês",1,null,null,{"$f":"D42*F42","v":0}]
[null,"Internet","mês",1,null,null,{"$f":"D43*F43","v":0}]
[null,"Energia elétrica","mês",1,null,null,{"$f":"D44*F44","v":0}]
[null,"Água e esgoto","mês",1,null,null,{"$f":"D45*F45","v":0}]
[null,"Materiais de limpeza","unid.",1,null,null,{"$f":"D46*F46","v":0}]
[null,"SUB-TOTAL",{"$nulls":4},{"$f":"SUM(G42:G46)","v":0}]
[null,"MÃO-DE-OBRA"]
[null,"DISCRIMINAÇÃO","UNIDADE","QUANT.",null,"P.UNIT.","P.TOTAL"]
[6121,"Auxiliar de serviços gerais","h",176,null,null,{"$f":"D50*F50","v":0}]
[null,"SUB-TOTAL",{"$nulls":4},{"$f":"G50","v":0}]
[]
[null,"Encargos sociais e trabalhistas"]
[null,"CUSTO UNITÁRIO TOTAL ",{"$nulls":4},{"$f":"G39+G47+G51","v":0}]
[]
[" COMPOSIÇÃO DE PREÇO UNITÁRIO",null,null,"1.3"]
["Cód. SINAPI"]
[null,"SERVIÇO: ASSENTAMENTO DAS MOTOBOMBAS NO PONTO DE CAPTAÇÃO (PROPRIÁ)",null,null,null,"UNIDADE: ","UD"]
[null,"EQUIPAMENTO"]
[null,"DISCRIMINAÇÃO","UNIDADE","QUANT.",null,"P.UNIT. ","P.TOTAL"]
[3366,"Guindaste tipo Munck, cap 5T, Locação com operador, combustível e manutenção","h",21,null,null,{"$f":"D61*F61","v":0}]
[null,"SUB-TOTAL",{"$nulls":4},{"$f":"G61","v":0}]
[null,"MÃO-DE-OBRA"]
[null,"DISCRIMINAÇÃO","UNIDADE","QUANT.",null,"P.UNIT.","P.TOTAL"]
[6111,"Servente","h",{"$f":"D61","v":21},null,null,{"$f":"D65*F65","v":0}]
[null,"SUB-TOTAL",{"$nulls":4},{"$f":"G65","v":0}]
[]
[null,"Encargos sociais e trabalhistas"]
[null,"CUSTO UNITÁRIO TOTAL",{"$nulls":4},{"$f":"G62+G66","v":0}]
[]
[" COMPOSIÇÃO DE PREÇO UNITÁRIO",null,null,"1.4"]
["Cód. SINAPI"]
[null,"SERVIÇO: ASSENTAMENTO DAS MOTOBOMBAS NO PONTO DE CAPTAÇÃO (COTINGUIBA)",null,null,null,"UNIDADE: ","UD"]
[null,"EQUIPAMENTO"]
[null,"DISCRIMINAÇÃO","UNIDADE","QUANT.",null,"P.UNIT. ","P.TOTAL"]
[3366,"Guindaste tipo Munck, cap 5T, Locação com operador, combustível e manutenção","h",35,null,null,{"$f":"D76*F76","v":0}]
[null,"SUB-TOTAL",{"$nulls":4},{"$f":"G76","v":0}]
[null,"MÃO-DE-OBRA"]
[null,"DISCRIMINAÇÃO","UNIDADE","QUANT.",null,"P.UNIT.","P.TOTAL"]
[6111,"Servente","h",{"$f":"D76","v":35},null,null,{"$f":"D80*F80","v":0}]
[null,"SUB-TOTAL",{"$nulls":4},{"$f":"G80","v":0}]
[]
[null,"Encargos sociais e trabalhistas"]
[null,"CUSTO UNITÁRIO TOTAL",{"$nulls":4},{"$f":"G77+G81","v":0}]
[]
[]
[" COMPOSIÇÃO DE PREÇO UNITÁRIO",null,null,"1.5"]
["Cód. SINAPI"]
[null,"SERVIÇO: ASSENTAMENTO DAS MOTOBOMBAS NO PONTO DE CAPTAÇÃO (EB2 E EB3 - BETUME)",null,null,null,"UNIDADE: ","UD"]
[null,"EQUIPAMENTO"]
[null,"DISCRIMINAÇÃO","UNIDADE","QUANT.",null,"P.UNIT. ","P.TOTAL"]
[3366,"Guindaste tipo Munck, cap 5T, Locação com operador, combustível e manutenção","h",56.5,null,null,{"$f":"D92*F92","v":0}]
[null,"SUB-TOTAL",{"$nulls":4},{"$f":"G92","v":0}]
[null,"MÃO-DE-OBRA"]
[null,"DISCRIMINAÇÃO","UNIDADE","QUANT.",null,"P.UNIT.","P.TOTAL"]
[6111,"Servente","h",{"$f":"D92","v":56.5},null,null,{"$f":"D96*F96","v":0}]
[null,"SUB-TOTAL",{"$nulls":4},{"$f":"G96","v":0}]
[]
[null,"Encargos sociais e trabalhistas"]
[null,"CUSTO UNITÁRIO TOTAL",{"$nulls":4},{"$f":"G93+G97","v":0}]
[" COMPOSIÇÃO DE PREÇO UNITÁRIO",null,null,"1.6"]
["Cód. SINAPI"]
[null,"SERVIÇO: ASSENTAMENTO DAS MOTOBOMBAS NO PONTO DE CAPTAÇÃO (EB5 BETUME)",null,null,null,"UNIDADE: ","UD"]
[null,"EQUIPAMENTO"]
[null,"DISCRIMINAÇÃO","UNIDADE","QUANT.",null,"P.UNIT. ","P.TOTAL"]
[3366,"Guindaste tipo Munck, cap 5T, Locação com operador, combustível e manutenção","h",35,null,null,{"$f":"D106*F106","v":0}]
[null,"SUB-TOTAL",{"$nulls":4},{"$f":"G106","v":0}]
[null,"MÃO-DE-OBRA"]
[null,"DISCRIMINAÇÃO","UNIDADE","QUANT.",null,"P.UNIT.","P.TOTAL"]
[6111,"Servente","h",{"$f":"D106","v":35},null,null,{"$f":"D110*F110","v":0}]
[null,"SUB-TOTAL",{"$nulls":4},{"$f":"G110","v":0}]
[]
[null,"Encargos sociais e trabalhistas"]
[null,"CUSTO UNITÁRIO TOTAL",{"$nulls":4},{"$f":"G107+G111","v":0}]
[]
[" COMPOSIÇÃO DE PREÇO UNITÁRIO",null,null,"1.7"]
["Cód. SINAPI"]
[null,"SERVIÇO: ASSENTAMENTO DAS MOTOBOMBAS NO PONTO DE CAPTAÇÃO (BETUME EB7)",null,null,null,"UNIDADE: ","UD"]
[null,"EQUIPAMENTO"]
[null,"DISCRIMINAÇÃO","UNIDADE","QUANT.",null,"P.UNIT. ","P.TOTAL"]
[3366,"Guindaste tipo Munck, cap 5T, Locação com operador, combustível e manutenção","h",21,null,null,{"$f":"D121*F121","v":0}]
[null,"SUB-TOTAL",{"$nulls":4},{"$f":"G121","v":0}]
[null,"MÃO-DE-OBRA"]
[null,"DISCRIMINAÇÃO","UNIDADE","QUANT.",null,"P.UNIT.","P.TOTAL"]
[6111,"Servente","h",{"$f":"D121","v":21},null,null,{"$f":"D125*F125","v":0}]
[null,"SUB-TOTAL",{"$nulls":4},{"$f":"G125","v":0}]
[]
[null,"Encargos sociais e trabalhistas"]
[null,"CUSTO UNITÁRIO TOTAL",{"$nulls":4},{"$f":"G122+G126","v":0}]
[]
[" COMPOSIÇÃO DE PREÇO UNITÁRIO",null,null,"1.8"]
["Cód. SINAPI"]
[null,"SERVIÇO: ASSENTAMENTO DAS MOTOBOMBAS NO PONTO DE CAPTAÇÃO (BETUME EB8)",null,null,null,"UNIDADE: ","UD"]
[null,"EQUIPAMENTO"]
[null,"DISCRIMINAÇÃO","UNIDADE","QUANT.",null,"P.UNIT. ","P.TOTAL"]
[3366,"Guindaste tipo Munck, cap 5T, Locação com operador, combustível e manutenção","h",21,null,null,{"$f":"D136*F136","v":0}]
[null,"SUB-TOTAL",{"$nulls":4},{"$f":"G136","v":0}]
[null,"MÃO-DE-OBRA"]
[null,"DISCRIMINAÇÃO","UNIDADE","QUANT.",null,"P.UNIT.","P.TOTAL"]
[6111,"Servente","h",{"$f":"D136","v":21},null,null,{"$f":"D140*F140","v":0}]
[null,"SUB-TOTAL",{"$nulls":4},{"$f":"G140","v":0}]
[]
[null,"Encargos sociais e trabalhistas"]
[null,"CUSTO UNITÁRIO TOTAL",{"$nulls":4},{"$f":"G137+G141","v":0}]
[]
[" COMPOSIÇÃO DE PREÇO UNITÁRIO",null,null,"1.9"]
["Cód. SINAPI"]
[null,"SERVIÇO: INSTALAÇÃO ELÉTRICA DO PAINEL E DAS MOTOBOMBAS (todas as EB's, exceto EB 2 e EB 3 - Betume)",null,null,null,"UNIDADE: ","UD"]
[null,"EQUIPAMENTO"]
[null,"DISCRIMINAÇÃO","UNIDADE","QUANT.",null,"P.UNIT. ","P.TOTAL"]
[]
[null,"SUB-TOTAL",{"$nulls":4},{"$f":"G151","v":0}]
[null,"MÃO-DE-OBRA"]
[null,"DISCRIMINAÇÃO","UNIDADE","QUANT.",null,"P.UNIT.","P.TOTAL"]
[2438,"Eletrotécnico","h",24,null,null,{"$f":"D155*F155","v":0}]
[2439,"Eletricista industrial","h",24,null,null,{"$f":"D156*F156","v":0}]
[247,"Auxiliar de eletricista","h",48,null,null,{"$f":"D157*F157","v":0}]
[]
[null,"SUB-TOTAL",{"$nulls":4},{"$f":"G155+G156+G157","v":0}]
[]
[null,"Encargos sociais e trabalhistas"]
[null,"CUSTO UNITÁRIO TOTAL",{"$nulls":4},{"$f":"G152+G159","v":0}]
[]
[]
[" COMPOSIÇÃO DE PREÇO UNITÁRIO",null,null,"1.10"]
["Cód. SINAPI"]
[null,"SERVIÇO: INSTALAÇÃO ELÉTRICA DO PAINEL E DAS MOTOBOMBAS (EB2 e EB3) BETUME",null,null,null,"UNIDADE: ","UD"]
[null,"EQUIPAMENTO"]
[null,"DISCRIMINAÇÃO","UNIDADE","QUANT.",null,"P.UNIT. ","P.TOTAL"]
[]
[null,"SUB-TOTAL",{"$nulls":4},{"$f":"G170","v":0}]
[null,"MÃO-DE-OBRA"]
[null,"DISCRIMINAÇÃO","UNIDADE","QUANT.",null,"P.UNIT.","P.TOTAL"]
[2438,"Eletrotécnico","h",60,null,null,{"$f":"D174*F174","v":0}]
[2439,"Eletricista industrial","h",60,null,null,{"$f":"D175*F175","v":0}]
[247,"Auxiliar de eletricista","h",72,null,null,{"$f":"D176*F176","v":0}]
[]
[null,"SUB-TOTAL",{"$nulls":4},{"$f":"G174+G175+G176","v":0}]
[]
[null,"Encargos sociais e trabalhistas"]
[null,"CUSTO UNITÁRIO TOTAL",{"$nulls":4},{"$f":"G171+G178","v":0}]

{"sheet":"BDI_Serviços","index":9,"n_rows":27,"n_cols":5,"rows_kept":27,"cut":false,"hidden":false,"merged":[[2,1,2,4],[3,1,3,4],[4,1,4,4]]}
[]
[]
[null,"DETALHAMENTO DO BDI"]
[null,"Serviços"]
[]
[]
[null,"Item","Descrição dos serviços","Preço de Venda (%)","Custo Direto (%)"]
[]
[null,"Item","Descrição dos serviços","Preço de Venda (%)","Custo Direto (%)"]
[]
[null,1,"Administração Central (A)"]
[]
[null,2,"Impostos e Taxas (I)"]
[null,"2.1","ISS"]
[null,"2.2","PIS"]
[null,"2.3","Cofins"]
[null,"2.4","CPRB"]
[null,"3","Risco, seguro e garantia (R) "]
[]
[null,4,"Despesas Financeiras (DF)"]
[]
[null,5,"Lucro (L)"]
[]
[null,null,"BDI* (%)",null,{"$f":"ROUND(((((1+$E$11+$E$18)*(1+$E$20)*(1+$E$22))/(1-$D$13))-1),4)","v":0}]
[]
[null,"Acórdão nº 2369/2011 - TCU - Plenário - DOU nº174 em 20 de setembro de 2011"]
[null,"BDI (%) = ((((1+AC+R)*(1+DF)*(1+L))/(1-I))-1)"]

{"sheet":"Forn Propriá","index":10,"n_rows":20,"n_cols":7,"rows_kept":20,"cut":false,"hidden":false,"merged":[[20,1,20,4],[6,5,7,6],[9,1,9,6],[19,1,19,4],[5,1,5,4],[6,1,8,1],[6,2,8,2],[6,3,8,3],[6,4,8,4]]}
[]
[null,null,"                                                         Ministério da Integração Nacional"]
[null,null,"                                                         Companhia de Desenvolvimento dos Vales do São Francisco e do Parnaíba"]
[]
[]
[null,"PLANILHA ANALÍTICA DE COTAÇÃO DOS VALORES EB 01 Propriá"]
[null,"ITEM","DISCRIMINAÇÃO","Un.","Quant.","Codevasf"]
[]
[{"$nulls":5},"Unit. ","Total"]
[null,"FORNECIMENTO"]
[null,1,"Fornecimento de Bomba do tipo Anfíbia, com  vazão de 1900 m³/h e altura manometrica de 8,5 m.c.a. (ponto de operação).                                                                                                                      Motores elétricos de 100  CV, 6 a 8 polos, 380 V, 60 HZ e rotação permitida de até 1185 rpm.                                                                        ","Unid.",1,null,{"$f":"$E$11*F11","v":0}]
[null,2,"Fornecimento de Bomba do tipo Anfíbia, com  vazão de 1900 m³/h e altura manometrica de 10,11 m.c.a. (ponto de operação).                                                                                                                      Motores elétricos de 100  CV, 6 a 8 polos, 380 V, 60 HZ e rotação permitida de até 1185 rpm.                                                                        ","Unid.",1,null,{"$f":"$E$12*F12","v":0}]
[null,3,"CCM ccontendo 01 chave de partida Soft Starter microprocessada de 100 CV, 380 V, montadas em armário metálico, com proteção de curto através de disjuntor tripolar, proteção de falta de fase, proteção de sobre e subcorrente, proteção de sobre e subtensão, proteção contra surto, botão liga/desliga, sinalização indicando motor ligado, botão de emergência. contator de by-pass, chave seleção manual/automático, monitoração via IHM de: amperímetro, voltímetro,  horímetro e cossimetro.","Unid.",2,null,{"$f":"$E$13*F13","v":0}]
[null,4,"Cabo Elétrico com bitola de 25 mm²","m",360,null,{"$f":"$E$14*F14","v":0}]
[null,5,"Curva 45º com flange em Aço ASTM-A36 - DN 400 mm - PN 10 - incluso proteção catódica","Unid.",3,null,{"$f":"$E$15*F15","v":0}]
[null,6,"Curva 90º com flange em Aço ASTM-A36 - DN 400 mm - PN 10 - incluso proteção catódica","Unid.",3,null,{"$f":"$E$16*F16","v":0}]
[null,7,"Válvulas de Retenção tipo Dupla Portinhola - DN 400 mm - PN 10","Unid.",1,null,{"$f":"$E$17*F17","v":0}]
[null,8,"Redução com Flanges Concênticas em Aço ASTM-A36 - DN (500 mm x 400 mm) - PN10 - incluso proteção catódica - L = 0,60 m","Unid.",1,null,{"$f":"$E$18*F18","v":0}]
[null,9,"Tubo em Aço ASTM-A36 flangeado - DN 400 mm - PN 10 - incluso proteção catódica - L = 5.8 m","Unid.",5,null,{"$f":"$E$19*F19","v":0}]
[null,"TOTAL",{"$nulls":4},{"$f":"SUM(G9:G19)","v":0}]

{"sheet":"Forn Cotinguiba","index":11,"n_rows":24,"n_cols":7,"rows_kept":24,"cut":false,"hidden":false,"merged":[[23,1,23,2],[24,1,24,4],[6,5,7,6],[9,1,9,6],[21,1,21,4],[5,1,5,4],[6,1,8,1],[6,2,8,2],[6,3,8,3],[6,4,8,4]]}
[]
[null,null,"                                                         Ministério da Integração Nacional"]
[null,null,"                                                         Companhia de Desenvolvimento dos Vales do São Francisco e do Parnaíba"]
[]
[]
[null,"PLANILHA ANALÍTICA DE COTAÇÃO DOS VALORES EB 02 COTINGUIBA"]
[null,"ITEM","DISCRIMINAÇÃO","Un.","Quant.","Codevasf"]
[]
[{"$nulls":5},"Unit. ","Total"]
[null,"FORNECIMENTO"]
[null,1,"Fornecimento de Bomba do tipo Anfíbia, com  vazão de 1900 m³/h e altura manometrica de 8 m.c.a. (ponto de operação).                                                                                                                      Motores elétricos de 100  CV, 6 a 8 polos, 380 V, 60 HZ e rotação permitida de até 1200 rpm.                                                                        ","Unid.",1,null,{"$f":"$E$11*F11","v":0}]
[null,2,"CCM contendo 01 chave de partida Soft Starter microprocessada de 100 CV, 380 V, montadas em armário metálico, com proteção de curto através de disjuntor tripolar, proteção de falta de fase, proteção de sobre e subcorrente, proteção de sobre e subtensão, proteção contra surto, botão liga/desliga, sinalização indicando motor ligado, botão de emergência. contator de by-pass, chave seleção manual/automático, monitoração via IHM de: amperímetro, voltímetro,  horímetro e cossimetro.","Unid.",1,null,{"$f":"$E$12*F12","v":0}]
[null,3,"Cabo Elétrico com bitola de 25 mm²","m",360,null,{"$f":"$E$13*F13","v":0}]
[null,4,"Curva 11° 15' com flange em Aço ASTM-A36 - DN 500 mm - PN 10 - incluso proteção catódica","Unid.",1,null,{"$f":"$E$14*F14","v":0}]
[null,5,"Curva 45º' com flange em Aço ASTM-A36 - DN 500 mm - PN 10 - incluso proteção catódica","Unid.",1,null,{"$f":"$E$15*F15","v":0}]
[null,6,"Curva 90º com flange em Aço ASTM-A36 - DN 500 mm - PN 10 - incluso proteção catódica","Unid.",2,null,{"$f":"$E$16*F16","v":0}]
[null,7,"Válvulas de Retenção tipo Dupla Portinhola - DN 500 mm - PN 10","Unid.",1,null,{"$f":"$E$17*F17","v":0}]
[null,8,"Redução com Flanges Concênticas em Aço ASTM-A36 - DN (600 mm x 500 mm) - PN10 - incluso proteção catódica - L = 0,60 m","Unid.",1,null,{"$f":"$E$18*F18","v":0}]
[null,9,"Tubo em Aço ASTM-A36 flangeado - DN 500 mm - PN 10 - incluso proteção catódica - L = 5.8 m","Unid.",9,null,{"$f":"$E$19*F19","v":0}]
[null,10,"Tubo em  PEAD  - DN 500 mm - PN 5 - NBR 15561 - Barra 12 metros.","m",60,null,{"$f":"$E$20*F20","v":0}]
[null,11,"Módulo Flutuante Principal Aço SAE 1020  próprio para inserção do conjunto Moto Bomba, com Elementos Hidromecânicos, Sistema de Ancoragem e flutuantes auxiliares para sustentar tubulação flexível de PEAD. Incluso proteção catódica","Unid.",1,null,{"$f":"$E$21*F21","v":0}]
[null,"TOTAL",{"$nulls":4},{"$f":"SUM(G11:G21)","v":0}]
[]
[null,"OBS.: Incluso todos os impostos (taxas, BDI's  e emolumentos...)"]

{"sheet":"Forn Betume EB2 e EB3","index":12,"n_rows":23,"n_cols":7,"rows_kept":23,"cut":false,"hidden":false,"merged":[[22,1,22,2],[23,1,23,4],[6,5,7,6],[9,1,9,6],[20,1,20,4],[5,1,5,4],[6,1,8,1],[6,2,8,2],[6,3,8,3],[6,4,8,4]]}
[]
[null,null,"                                                         Ministério da Integração Nacional"]
[null,null,"                                                         Companhia de Desenvolvimento dos Vales do São Francisco e do Parnaíba"]
[]
[]
[null,"PLANILHA ANALÍTICA DE COTAÇÃO DOS VALORES EB 02 e EB 03 BETUME"]
[null,"ITEM","DISCRIMINAÇÃO","Un.","Quant.","Codevasf"]
[]
[{"$nulls":5},"Unit. ","Total"]
[null,"FORNECIMENTO"]
[null,1,"Bomba do tipo Anfíbia, com  vazão de 2600 m³/h e altura manometrica de 8 m.c.a. (ponto de operação).                                                                                                                      Motor elétrico de 125 CV, 6 a 8 polos, 380 V, 60 HZ e rotação permitida de até 1185 rpm.                                                                        ","Unid.",2,null,{"$f":"$E$11*F11","v":0}]
[null,2,"CCM contendo 01 chave1 de partida SOFT STARTER microprocessada de 125CV, 380v, montadas em armário metálico, com proteção de curto através de disjuntor tripolar, proteção de falta de fase, proteção de sobre e subcorrente, proteção de sobre e subtensão, botão liga/desliga, sinalização indicando motor ligado, botão de emergência. contator de by-pass, chave seleção manual/autonmático, monitoração via ihm de: amperímetro, voltímetro e horímetro.","Unid.",2,null,{"$f":"$E$12*F12","v":0}]
[null,3,"Curva 90° com flange em Aço ASTM-A36 - DN 400 mm - PN 10 - incluso proteção catódica","Unid.",6,null,{"$f":"$E$13*F13","v":0}]
[null,4,"Válvulas de Retenção tipo Dupla Portinhola - DN 400 mm - PN 10","Unid.",3,null,{"$f":"$E$14*F14","v":0}]
[null,5,"Redução com Flanges Concênticas em Aço ASTM-A36 - DN (500 mm x 400 mm) - PN10 - incluso proteção catódica - L = 0,60 m","Unid.",3,null,{"$f":"$E$15*F15","v":0}]
[null,6,"Redução com Flanges Concênticas em Aço ASTM-A36 - DN (600 mm x 500) - PN 10 - incluso proteção catódica - L = 0,60 m","Unid.",3,null,{"$f":"$E$16*F16","v":0}]
[null,7,"Tubo em Aço ASTM-A36 flangeado - DN 400 mm - PN 10 - incluso proteção catódica - L = 4.95 m","Unid.",3,null,{"$f":"$E$17*F17","v":0}]
[null,8,"Tubo em Aço ASTM-A36flangeado - DN 400 mm - PN 10 - incluso proteção catódica - L = 4.00 m","Unid.",3,null,{"$f":"$E$18*F18","v":0}]
[null,9,"Tubo em  FºF° PB K7  - DN 400 mm","m",40,null,{"$f":"$E$19*F19","v":0}]
[null,10,"Carretel Flangeado em Aço ASTM-A36 flageando - DN 400 mm - PN 10 - incluso proteção catódica - L = 0.70 m","Unid.",1,null,{"$f":"$E$20*F20","v":0}]
[null,"TOTAL",{"$nulls":4},{"$f":"SUM(G11:G20)","v":0}]
[]
[null,"OBS.: Incluso todos os impostos (taxas, BDI's, emolumentos ...)"]

{"sheet":"Forn Betume EB5","index":13,"n_rows":22,"n_cols":7,"rows_kept":22,"cut":false,"hidden":false,"merged":[[22,1,22,2],[23,1,23,4],[6,5,7,6],[9,1,9,6],[21,1,21,4],[5,1,5,4],[6,1,8,1],[6,2,8,2],[6,3,8,3],[6,4,8,4]]}
[]
[null,null,"                                                         Ministério da Integração Nacional"]
[null,null,"                                                         Companhia de Desenvolvimento dos Vales do São Francisco e do Parnaíba"]
[]
[]
[null,"PLANILHA ANALÍTICA DE COTAÇÃO DOS VALORES EB 05 BETUME"]
[null,"ITEM","DISCRIMINAÇÃO","Un.","Quant.","Codevasf"]
[]
[{"$nulls":5},"Unit. ","Total"]
[null,"FORNECIMENTO"]
[null,1,"Fornecimento de Bomba do tipo Anfíbia, com  vazão de 1225 m³/h e altura manometrica de 8,5 m.c.a. (ponto de operação).                                                                                                                      Motores elétricos de 100 CV, 6 a 8 polos, 380 V, 60 HZ e rotação permitida de até 1200 rpm.                                                                        ","Unid.",1,null,{"$f":"$E$11*F11","v":0}]
[null,2,"CCM contendo 01 Chave de partida SOFT STARTER microprocessada de 100 CV, 380 V, montadas em armário metálico, com proteção de curto através de disjuntor tripolar, proteção de falta de fase, proteção de sobre e subcorrente, proteção de sobre e subtensão, proteção contra surto, botão liga/desliga, sinalização indicando motor ligado, botão de emergência. contator de by-pass, chave seleção manual/automático, monitoração via IHM de: amperímetro, voltímetro,  horímetro e cossimetro.","Unid.",1,null,{"$f":"$E$12*F12","v":0}]
[null,3,"Cabo Elétrico com bitola de 25 mm²","m",360,null,{"$f":"$E$13*F13","v":0}]
[null,4,"Curva 90° com flange em Aço ASTM-A36 - DN 500 mm - PN 10 - incluso proteção catódica","Unid.",1,null,{"$f":"$E$14*F14","v":0}]
[null,5,"Curva 45° com flange em Aço ASTM-A36 - DN 500 mm - PN 10 - incluso proteção catódica","Unid.",3,null,{"$f":"$E$15*F15","v":0}]
[null,6,"Curva 22°30' com flange em Aço ASTM-A36 - DN 500 mm - PN 10 - incluso proteção catódica","Unid.",2,null,{"$f":"$E$16*F16","v":0}]
[null,7,"Válvulas de Retenção - Dupla Portinhola- DN 500 mm - PN 10","Unid.",3,null,{"$f":"$E$17*F17","v":0}]
[null,8,"Redução com Flanges Concênticas em Aço ASTM-A36 - DN (600 mm x 500 mm) - PN10 - incluso proteção catódica - L = 0,35 m","Unid.",3,null,{"$f":"$E$18*F18","v":0}]
[null,9,"Tubo em Aço ASTM-A36 flangeado - DN 500 mm - PN 10 - incluso proteção catódica - L = 5,80 m","Unid.",8,null,{"$f":"$E$19*F19","v":0}]
[null,10,"Tubo em  PEAD  - DN 500 mm - PN 10 - NBR 15561 - Barra 12 metros.","Unid.",60,null,{"$f":"$E$20*F20","v":0}]
[null,11,"Módulo Flutuante Principal Aço SAE 1020  próprio para inserção do conjunto Moto Bomba, com Elementos Hidromecânicos, Sistema de Ancoragem e flutuantes auxiliares para sustentar tubulação flexível de PEAD. Incluso proteção catódica","Unid.",1,null,{"$f":"$E$11*F21","v":0}]
[null,"TOTAL",{"$nulls":4},{"$f":"SUM(G11:G21)","v":0}]

{"sheet":"Forn Betume EB7","index":14,"n_rows":19,"n_cols":7,"rows_kept":19,"cut":false,"hidden":false,"merged":[[6,5,7,6],[9,1,9,6],[18,1,18,4],[5,1,5,4],[6,1,8,1],[6,2,8,2],[6,3,8,3],[6,4,8,4]]}
[]
[null,null,"                                                         Ministério da Integração Nacional"]
[null,null,"                                                         Companhia de Desenvolvimento dos Vales do São Francisco e do Parnaíba"]
[]
[]
[null,"PLANILHA ANALÍTICA DE COTAÇÃO DOS VALORES EB 07 BETUME"]
[null,"ITEM","DISCRIMINAÇÃO","Un.","Quant.","Codevasf"]
[]
[{"$nulls":5},"Unit. ","Total"]
[null,"FORNECIMENTO"]
[null,1,"Fornecimento de Bomba do tipo Anfíbia, com  vazão de 1700 m³/h e altura manometrica de 8,5 m.c.a. (ponto de operação).                                                                                                                      Motores elétricos de 100  CV, 6 a 8 polos, 380 V, 60 HZ e rotação permitida de até 1200 rpm.                                                                        ","Unid.",1,null,{"$f":"$E$11*F11","v":0}]
[null,2,"CCM contendo Chave de partida SOFT STARTER microprocessada de 100 CV, 380 V, montadas em armário metálico, com proteção de curto através de disjuntor tripolar, proteção de falta de fase, proteção de sobre e subcorrente, proteção de sobre e subtensão, proteção contra surto, botão liga/desliga, sinalização indicando motor ligado, botão de emergência. contator de by-pass, chave seleção manual/automático, monitoração via IHM de: amperímetro, voltímetro,  horímetro e cossimetro.","Unid.",1,null,{"$f":"$E$12*F12","v":0}]
[null,4,"Cabo Elétrico com bitola de 25 mm²","m",360,null,{"$f":"$E$13*F13","v":0}]
[null,3,"Curva 45º com flange em Aço ASTM-A36 - DN 400 mm - PN 10 - incluso proteção catódica","Unid.",3,null,{"$f":"$E$14*F14","v":0}]
[null,4,"Curva 90º com flange em Aço ASTM-A36 - DN 400 mm - PN 10 - incluso proteção catódica","Unid.",3,null,{"$f":"$E$15*F15","v":0}]
[null,5,"Válvulas de Retenção tipo Dupla Portinhola - DN 400 mm - PN 10","Unid.",1,null,{"$f":"$E$16*F16","v":0}]
[null,6,"Redução com Flanges Concênticas em Aço ASTM-A36 - DN (500 mm x 400 mm) - PN5 - incluso proteção catódica - L = 0,60 m","Unid.",1,null,{"$f":"$E$17*F17","v":0}]
[null,7,"Tubo em Aço ASTM-A36 flangeado - DN 400 mm - PN 10 - incluso proteção catódica - L = 5.8 m","Unid.",5,null,{"$f":"$E$18*F18","v":0}]
[null,"TOTAL",{"$nulls":4},{"$f":"SUM(G8:G18)","v":0}]

{"sheet":"Forn Betume EB8","index":15,"n_rows":21,"n_cols":7,"rows_kept":21,"cut":false,"hidden":false,"merged":[[20,1,20,2],[21,1,21,4],[6,5,7,6],[9,1,9,6],[18,1,18,4],[5,1,5,4],[6,1,8,1],[6,2,8,2],[6,3,8,3],[6,4,8,4]]}
[]
[null,null,"                                                         Ministério da Integração Nacional"]
[null,null,"                                                         Companhia de Desenvolvimento dos Vales do São Francisco e do Parnaíba"]
[]
[]
[null,"PLANILHA ANALÍTICA DE COTAÇÃO DOS VALORES EB 08 BETUME"]
[null,"ITEM","DISCRIMINAÇÃO","Un.","Quant.","Codevasf"]
[]
[{"$nulls":5},"Unit. ","Total"]
[null,"FORNECIMENTO"]
[null,1,"Fornecimento de Bomba do tipo Anfíbia, com  vazão de 1700 m³/h e altura manometrica de 8,5 m.c.a. (ponto de operação).                                                                                                                      Motores elétricos de 100  CV, 6 a 8 polos, 380 V, 60 HZ e rotação permitida de até 1185 rpm.                                                                        ","Unid.",1,null,{"$f":"$E$11*F11","v":0}]
[null,2,"CCM contendo 01 chave de partida Soft Starter microprocessada de 100 CV, 380 V, montadas em armário metálico, com proteção de curto através de disjuntor tripolar, proteção de falta de fase, proteção de sobre e subcorrente, proteção de sobre e subtensão, proteção contra surto, botão liga/desliga, sinalização indicando motor ligado, botão de emergência. contator de by-pass, chave seleção manual/automático, monitoração via IHM de: amperímetro, voltímetro,  horímetro e cossimetro.","Unid.",1,null,{"$f":"$E$12*F12","v":0}]
[null,4,"Cabo Elétrico com bitola de 25 mm²","m",360,null,{"$f":"$E$13*F13","v":0}]
[null,3,"Curva 45º com flange em Aço ASTM-A36- DN 400 mm - PN 10 - incluso proteção catódica","Unid.",3,null,{"$f":"$E$14*F14","v":0}]
[null,4,"Curva 90º com flange em Aço ASTM-A36 - DN 400 mm - PN 10 - incluso proteção catódica","Unid.",3,null,{"$f":"$E$15*F15","v":0}]
[null,5,"Válvulas de Retenção tipo Dupla Portinhola - DN 400 mm - PN 10","Unid.",1,null,{"$f":"$E$16*F16","v":0}]
[null,6,"Redução com Flanges Concênticas em Aço ASTM-A36 - DN (500 mm x 400 mm) - PN10 - incluso proteção catódica - L = 0,60 m","Unid.",1,null,{"$f":"$E$17*F17","v":0}]
[null,7,"Tubo em Aço ASTM-A36 flangeado - DN 400 mm - PN 10 - incluso proteção catódica - L = 5.8 m","Unid.",5,null,{"$f":"$E$18*F18","v":0}]
[null,"TOTAL",{"$nulls":4},{"$f":"SUM(G8:G18)","v":0}]
[]
[null,"OBS.: Incluso todos os impostos (taxas, BDI's  e emolumentos...)"]